lending/lending_fUSD_20240603
["ID","MTS","AMOUNT","RATE_DAILY","PERIOD"]
[328455589,1717411885574,156.50520259,0.00017259,2]
[328455590,1717411889002,37553.49291669,0.00019451,2]
[328455591,1717411892218,261222.75656173,0.00019451,2]
[328455592,1717411892962,500.0,0.00019451,2]
[328455593,1717411895875,1046.00879029,0.00019451,2]
[328455594,1717411907560,446.44016402,0.0002,2]
[328455599,1717411924000,363.01539118,0.00019451,2]
[328455600,1717411927161,410.81529252,0.00017259,2]
[328455601,1717411930425,366.38754424,0.00019451,2]
[328455602,1717411933332,266.98745558,0.00017259,2]
[328455603,1717411939057,3097.54023704,0.00017259,2]
[328455604,1717411940361,257.76309621,0.0002,2]
[328455605,1717411940406,162.43889423,0.00017259,2]
[328455606,1717411945300,34325.25131904,0.00017807,2]
[328455607,1717411948554,506.11774641,0.00017259,2]
[328455608,1717411953380,155.0,0.00017258,2]
[328455609,1717411957699,2818.93117646,0.00017259,2]
[328455610,1717411958145,155.0,0.00017259,2]
[328455611,1717411960241,237.90651467,0.00017259,2]
[328455612,1717411962609,326.7623735,0.00017259,2]
[328455613,1717411964304,7534.4655871,0.00017259,2]
[328455614,1717411964500,1066.49445789,0.00017259,2]
[328455615,1717411974516,333.82252227,0.00017259,2]
[328455616,1717411986574,155.0,0.00017259,2]
[328455618,1717412257880,296.512316,0.00019451,2]
[328455619,1717412305270,855.65609833,0.00019451,2]
[328455620,1717412337132,264.363282,0.00019451,2]
[328455621,1717412367598,419.0,0.00025,120]
[328455625,1717412686972,1511.56448,0.0002,2]
[328455626,1717412739377,296.512316,0.00017807,2]
[328455627,1717412786652,176.242188,0.00019451,2]
[328455638,1717413032475,-1511.56449,0.000223,2]
[328455639,1717413032485,-152.41,0.00024384,2]
[328455640,1717413032494,-1511.56449,0.000248,2]
[328455641,1717413032504,-1250.0,0.00025,2]
[328455642,1717413032513,-230.703457,0.00025205,2]
[328455643,1717413032524,-418.73,0.00025347,2]
[328455644,1717413032533,-155.31918261,0.00025611,2]
[328455645,1717413032542,-499.99,0.00025611,2]
[328455646,1717413032552,-500.0,0.00025879,2]
[328455647,1717413032563,-230.703457,0.00026027,2]
[328455648,1717413032572,-155.0,0.00026358,2]
[328455649,1717413032581,-296.512316,0.00026359,2]
[328455650,1717413032590,-208.16592772,0.0002636,7]
[328455651,1717413032600,-230.703457,0.00026849,2]
[328455652,1717413032609,-500.0,0.00026975,2]
[328455653,1717413032618,-1300.0,0.00027,2]
[328455654,1717413032627,-4024.29763669,0.00027,2]
[328455655,1717413032637,-250.0,0.00027107,2]
[328455656,1717413032646,-232.89,0.00027168,2]
[328455657,1717413032656,-250.0,0.00027198,2]
[328455658,1717413032665,-187.12,0.00027223,2]
[328455659,1717413032674,-1737.07,0.00027241,2]
[328455660,1717413032683,-240.51,0.00027246,2]
[328455661,1717413032692,-168.15,0.00027266,2]
[328455662,1717413032701,-1511.56449,0.000273,2]
[328455663,1717413032710,-190.05,0.00027384,2]
[328455664,1717413032720,-809.5948544,0.0002739,2]
[328455665,1717413032729,-153.03,0.00027397,2]
[328455666,1717413032740,-418.73,0.0002761,2]
[328455667,1717413032749,-1235.15,0.00027629,2]
[328455668,1717413032758,-230.703457,0.00027671,14]
[328455669,1717413032768,-500.0,0.00028071,2]
[328455670,1717413032777,-167.96,0.00028089,2]
[328455671,1717413032787,-1000.0,0.0002833,2]
[328455672,1717413032797,-230.703457,0.00028493,14]
[328455673,1717413032806,-152.70412562,0.00028957,2]
[328455674,1717413032816,-2309.0,0.00029,2]
[328455675,1717413032825,-152.55696008,0.00029083,2]
[328455676,1717413032834,-230.703457,0.00029315,14]
[328455677,1717413032844,-161.10334417,0.00029397,2]
[328455678,1717413032853,-227.21479396,0.000295,3]
[328455679,1717413032862,-1511.56449,0.000298,2]
[328455680,1717413032872,-418.73,0.00029874,2]
[328455681,1717413032881,-681.12926309,0.000299,2]
[328455682,1717413032890,-154.539504,0.000299,2]
[328455683,1717413032900,-163.87246876,0.000299,2]
[328455684,1717413032909,-2009.63809376,0.00029923,2]
[328455685,1717413032919,-1737.07,0.0002998,2]
[328455686,1717413032928,-159.66,0.0002999,2]
[328455688,1717413032937,-836.32447437,0.00029996,2]
[328455690,1717413032947,-313.11538181,0.00029996,2]
[328455692,1717413032956,-641.24224951,0.00029997,2]
[328455693,1717413032968,-150.91898748,0.00029997,2]
[328455695,1717413032980,-6673.53255775,0.00029997,2]
[328455696,1717413033162,-40461.58822464,0.00029998,2]
[328455697,1717413033172,-28106.12977641,0.0003,2]
[328455698,1717413033184,-25095.48581509,0.0003,2]
[328455699,1717413033203,-30000.0,0.0003,4]
[328455700,1717413033215,-30000.0,0.0003,4]
[328455701,1717413033224,-30000.0,0.0003,4]
[328455702,1717413033234,-30000.0,0.0003,4]
[328455703,1717413033244,-30000.0,0.0003,4]
[328455704,1717413033254,-10389.225759,0.0003,4]
[328455705,1717413033264,-151.0,0.0003,7]
[328455706,1717413033274,-163.287402,0.0003,7]
[328455707,1717413033284,-151.0,0.0003,7]
[328455708,1717413033293,-161.029717,0.0003,7]
[328455709,1717413033303,-151.0,0.0003,7]
[328455710,1717413033313,-160.412703,0.0003,7]
[328455711,1717413033322,-151.0,0.0003,7]
[328455712,1717413033332,-151.0,0.0003,7]
[328455713,1717413033341,-151.0,0.0003,7]
[328455714,1717413033351,-151.0,0.0003,7]
[328455715,1717413033361,-151.0,0.0003,7]
[328455716,1717413033371,-151.0,0.0003,7]
[328455717,1717413033380,-154.506773,0.0003,7]
[328455718,1717413033392,-151.0,0.0003,7]
[328455719,1717413033402,-162.757611,0.0003,7]
[328455720,1717413033412,-201.13791937,0.0003,2]
[328455721,1717413033421,-151.0,0.0003,7]
[328455722,1717413033431,-151.0,0.0003,7]
[328455723,1717413033441,-151.0,0.0003,7]
[328455724,1717413033452,-151.0,0.0003,7]
[328455725,1717413033462,-151.0,0.0003,7]
[328455726,1717413033473,-151.0,0.0003,7]
[328455727,1717413033483,-151.0,0.0003,7]
[328455728,1717413033493,-151.0,0.0003,7]
[328455729,1717413033502,-151.0,0.0003,7]
[328455730,1717413033511,-151.0,0.0003,7]
[328455731,1717413033521,-151.0,0.0003,7]
[328455732,1717413033530,-162.255662,0.0003,7]
[328455733,1717413033540,-151.0,0.0003,7]
[328455734,1717413033549,-151.0,0.0003,7]
[328455735,1717413033559,-151.0,0.0003,7]
[328455736,1717413033568,-155.101469,0.0003,7]
[328455737,1717413033577,-151.0,0.0003,7]
[328455738,1717413033587,-151.0,0.0003,7]
[328455739,1717413033596,-151.0,0.0003,7]
[328455740,1717413033605,-168.804241,0.0003,7]
[328455741,1717413033615,-151.0,0.0003,7]
[328455742,1717413033625,-151.0,0.0003,7]
[328455743,1717413033634,-151.0,0.0003,7]
[328455744,1717413033644,-151.0,0.0003,7]
[328455745,1717413033653,-151.0,0.0003,7]
[328455746,1717413033662,-151.0,0.0003,7]
[328455747,1717413033672,-151.0,0.0003,7]
[328455748,1717413033682,-151.0,0.0003,7]
[328455749,1717413033691,-151.0,0.0003,7]
[328455750,1717413033702,-154.525546,0.0003,7]
[328455751,1717413033712,-151.0,0.0003,7]
[328455752,1717413033721,-151.0,0.0003,7]
[328455753,1717413033731,-151.0,0.0003,7]
[328455754,1717413033741,-151.0,0.0003,7]
[328455755,1717413033750,-151.0,0.0003,7]
[328455756,1717413033760,-151.0,0.0003,7]
[328455757,1717413033769,-151.0,0.0003,7]
[328455758,1717413033779,-156.976418,0.0003,7]
[328455759,1717413033788,-180.0,0.00030057,2]
[328455760,1717413033798,-500.0,0.00030136,4]
[328455761,1717413033808,-500.0,0.00030136,4]
[328455762,1717413033817,-500.0,0.00030136,4]
[328455763,1717413033827,-500.0,0.00030136,4]
[328455764,1717413033837,-500.0,0.00030136,4]
[328455765,1717413033846,-500.0,0.00030136,4]
[328455766,1717413033856,-500.0,0.00030136,4]
[328455767,1717413033865,-500.0,0.00030136,4]
[328455768,1717413033874,-582.45895395,0.00030136,4]
[328455769,1717413033883,-500.0,0.00030136,4]
[328455770,1717413033893,-500.0,0.00030136,4]
[328455771,1717413033902,-379.80632125,0.00030136,4]
[328455772,1717413033912,-500.0,0.00030136,4]
[328455773,1717413033922,-500.0,0.00030136,4]
[328455774,1717413033931,-500.0,0.00030136,4]
[328455775,1717413033941,-500.0,0.00030136,4]
[328455776,1717413033951,-500.0,0.00030136,4]
[328455777,1717413033960,-500.0,0.00030136,4]
[328455778,1717413033969,-527.27043267,0.00030136,4]
[328455779,1717413033978,-500.0,0.00030136,4]
[328455780,1717413033988,-285.63426856,0.00030136,4]
[328455781,1717413033997,-316.66457622,0.00030136,4]
[328455782,1717413034007,-657.12,0.00030136,4]
[328455783,1717413034016,-1791.32,0.00030136,4]
[328455784,1717413034026,-500.0,0.00030136,4]
[328455785,1717413034036,-500.0,0.00030136,4]
[328455786,1717413034045,-743.67,0.00030136,4]
[328455787,1717413034055,-1226.33,0.00030136,4]
[328455788,1717413034065,-500.0,0.00030136,4]
[328455789,1717413034075,-500.0,0.00030136,4]
[328455790,1717413034089,-582.47,0.00030136,4]
[328455791,1717413034099,-500.0,0.00030136,4]
[328455792,1717413034109,-2135.51,0.00030136,4]
[328455793,1717413034118,-500.0,0.00030136,4]
[328455794,1717413034128,-500.0,0.00030136,4]
[328455795,1717413034138,-500.0,0.00030136,4]
[328455796,1717413034148,-616.88115196,0.00030136,4]
[328455797,1717413034158,-500.0,0.00030136,4]
[328455798,1717413034168,-151.0,0.00030136,7]
[328455799,1717413034178,-542.21977975,0.00030136,4]
[328455800,1717413034188,-500.0,0.00030136,4]
[328455801,1717413034198,-500.0,0.00030136,4]
[328455802,1717413034208,-500.0,0.00030136,4]
[328455803,1717413034217,-500.0,0.00030136,4]
[328455804,1717413034227,-500.0,0.00030136,4]
[328455805,1717413034236,-500.0,0.00030136,4]
[328455806,1717413034246,-500.0,0.00030136,4]
[328455807,1717413034256,-500.0,0.00030136,4]
[328455808,1717413034265,-500.0,0.00030136,4]
[328455809,1717413034275,-500.0,0.00030136,4]
[328455810,1717413034285,-500.0,0.00030136,4]
[328455811,1717413034294,-500.0,0.00030136,4]
[328455812,1717413034304,-151.0,0.00030136,7]
[328455813,1717413034314,-500.0,0.00030136,4]
[328455814,1717413034324,-500.0,0.00030136,4]
[328455815,1717413034333,-500.0,0.00030136,4]
[328455816,1717413034343,-720.96,0.00030136,4]
[328455817,1717413034352,-295.81,0.00030136,4]
[328455818,1717413034362,-500.0,0.00030136,4]
[328455819,1717413034372,-500.0,0.00030136,4]
[328455820,1717413034382,-500.0,0.00030136,4]
[328455821,1717413034395,-500.0,0.00030136,4]
[328455822,1717413034404,-500.0,0.00030136,4]
[328455823,1717413034414,-502.39752966,0.00030136,4]
[328455824,1717413034424,-500.0,0.00030136,4]
[328455825,1717413034435,-500.0,0.00030136,4]
[328455826,1717413034445,-500.0,0.00030136,4]
[328455827,1717413034455,-500.0,0.00030136,4]
[328455828,1717413034466,-500.0,0.00030136,4]
[328455829,1717413034477,-500.0,0.00030136,4]
[328455830,1717413034487,-1853.23,0.00030136,4]
[328455831,1717413034496,-290.524834,0.00030136,7]
[328455832,1717413034506,-2877.14,0.00030136,4]
[328455833,1717413034516,-711.53,0.00030136,4]
[328455834,1717413034526,-505.68493563,0.00030136,4]
[328455835,1717413034535,-163.53935153,0.00030136,4]
[328455836,1717413034545,-500.0,0.00030136,4]
[328455837,1717413034555,-214.45321585,0.00030136,4]
[328455838,1717413034564,-500.0,0.00030136,4]
[328455839,1717413034574,-258.06314314,0.00030136,4]
[328455840,1717413034583,-500.0,0.00030136,4]
[328455841,1717413034593,-500.0,0.00030136,4]
[328455842,1717413034603,-500.0,0.00030136,4]
[328455843,1717413034612,-214.850723,0.00030137,7]
[328455844,1717413034622,-230.703457,0.00030137,14]
[328455845,1717413034632,-172.63,0.00030183,2]
[328455846,1717413034641,-154.53950398,0.00030267,15]
[328455847,1717413034651,-151.0,0.00030267,7]
[328455848,1717413034660,-152.70412562,0.00030307,7]
[328455849,1717413034671,-681.12926303,0.00030371,2]
[328455850,1717413034680,-500.0,0.0003041,4]
[328455851,1717413034690,-500.0,0.0003041,4]
[328455852,1717413034700,-500.0,0.0003041,4]
[328455853,1717413034710,-500.0,0.0003041,4]
[328455854,1717413034719,-500.0,0.0003041,4]
[328455855,1717413034729,-500.0,0.0003041,4]
[328455856,1717413034738,-500.0,0.0003041,4]
[328455857,1717413034747,-500.0,0.0003041,4]
[328455858,1717413034757,-500.0,0.0003041,4]
[328455859,1717413034767,-562.75365395,0.0003041,4]
[328455860,1717413034777,-500.0,0.0003041,4]
[328455861,1717413034786,-516.10948485,0.0003041,4]
[328455862,1717413034796,-500.0,0.0003041,4]
[328455863,1717413034806,-500.0,0.0003041,4]
[328455864,1717413034816,-488.82523512,0.0003041,4]
[328455865,1717413034826,-151.0,0.0003041,7]
[328455866,1717413034835,-151.0,0.0003041,7]
[328455867,1717413034846,-657.12,0.0003041,4]
[328455868,1717413034857,-1791.32,0.0003041,4]
[328455869,1717413034867,-500.0,0.0003041,4]
[328455870,1717413034876,-500.0,0.0003041,4]
[328455871,1717413034885,-743.67,0.0003041,4]
[328455872,1717413034895,-1226.33,0.0003041,4]
[328455873,1717413034904,-500.0,0.0003041,4]
[328455874,1717413034914,-512.27659319,0.0003041,4]
[328455875,1717413034924,-500.0,0.0003041,4]
[328455876,1717413034933,-2135.51,0.0003041,4]
[328455877,1717413034943,-515.03,0.0003041,4]
[328455878,1717413034954,-500.0,0.0003041,4]
[328455879,1717413034963,-500.0,0.0003041,4]
[328455880,1717413034973,-500.0,0.0003041,4]
[328455881,1717413034983,-526.37891938,0.0003041,4]
[328455882,1717413034992,-174.19712537,0.0003041,4]
[328455883,1717413035002,-500.0,0.0003041,4]
[328455884,1717413035012,-500.0,0.0003041,4]
[328455885,1717413035021,-500.0,0.0003041,4]
[328455886,1717413035031,-500.0,0.0003041,4]
[328455887,1717413035040,-500.0,0.0003041,4]
[328455888,1717413035050,-500.0,0.0003041,4]
[328455889,1717413035060,-500.0,0.0003041,4]
[328455890,1717413035070,-500.0,0.0003041,4]
[328455891,1717413035079,-500.0,0.0003041,4]
[328455892,1717413035089,-500.0,0.0003041,4]
[328455893,1717413035099,-500.0,0.0003041,4]
[328455894,1717413035109,-500.0,0.0003041,4]
[328455895,1717413035118,-720.96,0.0003041,4]
[328455896,1717413035127,-500.0,0.0003041,4]
[328455897,1717413035136,-500.0,0.0003041,4]
[328455898,1717413035146,-500.0,0.0003041,4]
[328455899,1717413035155,-500.0,0.0003041,4]
[328455900,1717413035165,-500.0,0.0003041,4]
[328455901,1717413035175,-164.22580137,0.0003041,4]
[328455902,1717413035184,-500.0,0.0003041,4]
[328455903,1717413035193,-500.0,0.0003041,4]
[328455904,1717413035203,-500.0,0.0003041,4]
[328455905,1717413035212,-500.0,0.0003041,4]
[328455906,1717413035222,-500.0,0.0003041,4]
[328455907,1717413035231,-1853.23,0.0003041,4]
[328455908,1717413035241,-2877.14,0.0003041,4]
[328455909,1717413035250,-711.53,0.0003041,4]
[328455910,1717413035260,-500.0,0.0003041,4]
[328455911,1717413035269,-500.0,0.0003041,4]
[328455912,1717413035279,-425.11176473,0.0003041,4]
[328455913,1717413035288,-500.0,0.0003041,4]
[328455914,1717413035298,-326.19807991,0.00030584,2]
[328455915,1717413035307,-151.0,0.00030633,7]
[328455916,1717413035317,-154.53950398,0.00030633,15]
[328455917,1717413035326,-500.0,0.00030684,4]
[328455918,1717413035336,-500.0,0.00030684,4]
[328455919,1717413035345,-500.0,0.00030684,4]
[328455920,1717413035354,-500.0,0.00030684,4]
[328455921,1717413035364,-500.0,0.00030684,4]
[328455922,1717413035374,-500.0,0.00030684,4]
[328455923,1717413035384,-500.0,0.00030684,4]
[328455924,1717413035396,-500.0,0.00030684,4]
[328455925,1717413035406,-500.0,0.00030684,4]
[328455926,1717413035415,-304.16450378,0.00030684,4]
[328455927,1717413035424,-500.0,0.00030684,4]
[328455928,1717413035435,-657.12,0.00030684,4]
[328455929,1717413035444,-1791.32,0.00030684,4]
[328455930,1717413035454,-500.0,0.00030684,4]
[328455931,1717413035466,-151.0,0.00030684,7]
[328455932,1717413035475,-500.0,0.00030684,4]
[328455933,1717413035485,-743.67,0.00030684,4]
[328455934,1717413035494,-1226.33,0.00030684,4]
[328455935,1717413035504,-500.0,0.00030684,4]
[328455936,1717413035513,-500.0,0.00030684,4]
[328455937,1717413035523,-2135.51,0.00030684,4]
[328455938,1717413035532,-500.0,0.00030684,4]
[328455939,1717413035542,-500.0,0.00030684,4]
[328455940,1717413035551,-500.0,0.00030684,4]
[328455941,1717413035561,-500.0,0.00030684,4]
[328455942,1717413035571,-500.0,0.00030684,4]
[328455943,1717413035580,-500.0,0.00030684,4]
[328455944,1717413035591,-500.0,0.00030684,4]
[328455945,1717413035600,-500.0,0.00030684,4]
[328455946,1717413035609,-500.0,0.00030684,4]
[328455947,1717413035619,-500.0,0.00030684,4]
[328455948,1717413035628,-500.0,0.00030684,4]
[328455949,1717413035638,-500.0,0.00030684,4]
[328455950,1717413035648,-500.0,0.00030684,4]
[328455951,1717413035658,-500.0,0.00030684,4]
[328455952,1717413035668,-500.0,0.00030684,4]
[328455953,1717413035678,-720.96,0.00030684,4]
[328455954,1717413035688,-622.94,0.00030684,4]
[328455955,1717413035697,-500.0,0.00030684,4]
[328455956,1717413035707,-500.0,0.00030684,4]
[328455957,1717413035716,-500.0,0.00030684,4]
[328455958,1717413035725,-500.0,0.00030684,4]
[328455959,1717413035735,-500.0,0.00030684,4]
[328455960,1717413035744,-500.0,0.00030684,4]
[328455961,1717413035754,-500.0,0.00030684,4]
[328455962,1717413035764,-500.0,0.00030684,4]
[328455963,1717413035773,-500.0,0.00030684,4]
[328455964,1717413035783,-1853.23,0.00030684,4]
[328455965,1717413035792,-2877.14,0.00030684,4]
[328455966,1717413035802,-711.53,0.00030684,4]
[328455967,1717413035812,-500.0,0.00030684,4]
[328455968,1717413035822,-500.0,0.00030684,4]
[328455969,1717413035831,-500.0,0.00030684,4]
[328455970,1717413035841,-152.70412562,0.00030715,7]
[328455971,1717413035851,-155.55477165,0.00030796,7]
[328455972,1717413035860,-681.12926303,0.00030843,2]
[328455973,1717413035870,-155.53632483,0.00030868,4]
[328455974,1717413035880,-500.0,0.00030958,4]
[328455975,1717413035889,-232.97278056,0.00030958,4]
[328455976,1717413035899,-500.0,0.00030958,4]
[328455977,1717413035909,-500.0,0.00030958,4]
[328455978,1717413035919,-500.0,0.00030958,4]
[328455979,1717413035929,-500.0,0.00030958,4]
[328455980,1717413035938,-500.0,0.00030958,4]
[328455981,1717413035950,-151.0,0.00030958,7]
[328455982,1717413035959,-151.0,0.00030958,7]
[328455983,1717413035968,-657.12,0.00030958,4]
[328455984,1717413035978,-1791.32,0.00030958,4]
[328455985,1717413035987,-500.0,0.00030958,4]
[328455986,1717413035998,-288.37325534,0.00030958,4]
[328455987,1717413036008,-743.67,0.00030958,4]
[328455988,1717413036018,-1226.33,0.00030958,4]
[328455989,1717413036027,-500.0,0.00030958,4]
[328455990,1717413036037,-500.0,0.00030958,4]
[328455991,1717413036047,-2135.51,0.00030958,4]
[328455992,1717413036057,-500.0,0.00030958,4]
[328455993,1717413036067,-500.0,0.00030958,4]
[328455994,1717413036076,-500.0,0.00030958,4]
[328455995,1717413036086,-500.0,0.00030958,4]
[328455996,1717413036096,-500.0,0.00030958,4]
[328455997,1717413036105,-355.14598753,0.00030958,4]
[328455998,1717413036115,-500.0,0.00030958,4]
[328455999,1717413036124,-500.0,0.00030958,4]
[328456000,1717413036133,-500.0,0.00030958,4]
[328456001,1717413036143,-500.0,0.00030958,4]
[328456002,1717413036152,-588.22955657,0.00030958,4]
[328456003,1717413036163,-550.13885389,0.00030958,4]
[328456004,1717413036172,-500.0,0.00030958,4]
[328456005,1717413036182,-500.0,0.00030958,4]
[328456006,1717413036191,-720.96,0.00030958,4]
[328456007,1717413036204,-500.0,0.00030958,4]
[328456008,1717413036213,-500.0,0.00030958,4]
[328456009,1717413036222,-500.0,0.00030958,4]
[328456010,1717413036231,-500.0,0.00030958,4]
[328456011,1717413036241,-500.0,0.00030958,4]
[328456012,1717413036250,-500.0,0.00030958,4]
[328456013,1717413036259,-500.0,0.00030958,4]
[328456014,1717413036268,-500.0,0.00030958,4]
[328456015,1717413036278,-1853.23,0.00030958,4]
[328456016,1717413036288,-2877.14,0.00030958,4]
[328456017,1717413036298,-711.53,0.00030958,4]
[328456018,1717413036308,-500.0,0.00030958,4]
[328456019,1717413036318,-500.0,0.00030958,4]
[328456020,1717413036328,-500.0,0.00030958,4]
[328456021,1717413036337,-154.53950398,0.00031,15]
[328456022,1717413036348,-151.0,0.00031,7]
[328456023,1717413036360,-151.485006,0.0003102,7]
[328456024,1717413036370,-1000.0,0.000311,2]
[328456025,1717413036379,-7500.0,0.00031132,2]
[328456026,1717413036391,-166.07005806,0.00031175,3]
[328456027,1717413036403,-356.57691432,0.00031231,2]
[328456028,1717413036412,-500.0,0.00031232,4]
[328456029,1717413036422,-500.0,0.00031232,4]
[328456030,1717413036431,-500.0,0.00031232,4]
[328456031,1717413036442,-500.0,0.00031232,4]
[328456032,1717413036452,-500.0,0.00031232,4]
[328456033,1717413036462,-151.0,0.00031232,7]
[328456034,1717413036474,-500.0,0.00031232,4]
[328456035,1717413036484,-657.12,0.00031232,4]
[328456036,1717413036493,-1791.32,0.00031232,4]
[328456037,1717413036503,-500.0,0.00031232,4]
[328456038,1717413036512,-743.67,0.00031232,4]
[328456039,1717413036522,-1226.33,0.00031232,4]
[328456040,1717413036531,-160.05,0.00031232,4]
[328456041,1717413036541,-500.0,0.00031232,4]
[328456042,1717413036688,-2135.51,0.00031232,4]
[328456043,1717413036700,-500.0,0.00031232,4]
[328456044,1717413036710,-500.0,0.00031232,4]
[328456045,1717413036719,-569.54889457,0.00031232,4]
[328456046,1717413036729,-500.0,0.00031232,4]
[328456047,1717413036739,-500.0,0.00031232,4]
[328456048,1717413036749,-500.0,0.00031232,4]
[328456049,1717413036759,-500.0,0.00031232,4]
[328456050,1717413036768,-500.0,0.00031232,4]
[328456051,1717413036779,-500.0,0.00031232,4]
[328456052,1717413036789,-500.0,0.00031232,4]
[328456053,1717413036798,-500.0,0.00031232,4]
[328456054,1717413036808,-720.96,0.00031232,4]
[328456055,1717413036818,-500.0,0.00031232,4]
[328456056,1717413036827,-500.0,0.00031232,4]
[328456057,1717413036837,-500.0,0.00031232,4]
[328456058,1717413036846,-500.0,0.00031232,4]
[328456059,1717413036855,-358.38,0.00031232,4]
[328456060,1717413036865,-500.0,0.00031232,4]
[328456061,1717413036875,-500.0,0.00031232,4]
[328456062,1717413036884,-500.0,0.00031232,4]
[328456063,1717413036894,-1853.23,0.00031232,4]
[328456064,1717413036903,-2877.14,0.00031232,4]
[328456065,1717413036912,-711.53,0.00031232,4]
[328456066,1717413036922,-500.0,0.00031232,4]
[328456067,1717413036931,-500.0,0.00031232,4]
[328456068,1717413036942,-500.0,0.00031232,4]
[328456069,1717413036953,-500.0,0.00031237,2]
[328456070,1717413036963,-500.0,0.00031238,2]
[328456071,1717413036972,-200.0,0.00031238,2]
[328456072,1717413036981,-151.0,0.00031296,7]
[328456073,1717413036990,-151.0,0.00031296,7]
[328456074,1717413037000,-681.12926303,0.00031314,2]
[328456075,1717413037010,-154.53950398,0.00031367,15]
[328456076,1717413037019,-159.8102037,0.00031386,4]
[328456077,1717413037029,-159.66,0.00031387,2]
[328456078,1717413037038,-376.28341195,0.00031387,2]
[328456079,1717413037047,-15412.90639696,0.00031397,2]
[328456080,1717413037064,-673.66455334,0.00031397,2]
[328456081,1717413037076,-935.99632994,0.00031397,2]
[328456082,1717413037087,-317.65,0.00031397,2]
[328456083,1717413037098,-865.46028817,0.00031397,2]
[328456084,1717413037109,-515.8840676,0.00031397,2]
[328456085,1717413037120,-669.94125223,0.00031397,2]
[328456086,1717413037132,-797.37400748,0.00031397,2]
[328456087,1717413037143,-819.28,0.00031397,2]
[328456088,1717413037154,-12429.9452424,0.00031397,2]
[328456089,1717413037166,-7329.21448272,0.00031397,2]
[328456092,1717413038628,-23501.76131717,0.00026999,5]
[328456093,1717413038638,-500.0,0.00030136,4]
[328456094,1717413038647,-500.0,0.0003041,4]
[328456095,1717413038656,-500.0,0.0003041,4]
[328456096,1717413038665,-500.0,0.00030684,4]
[328456097,1717413038674,-500.0,0.00030684,4]
[328456098,1717413038683,-500.0,0.00030958,4]
[328456099,1717413038692,-500.0,0.00030958,4]
[328456100,1717413038704,-230.703457,0.00030959,14]
[328456101,1717413038713,-500.0,0.00031232,4]
[328456102,1717413038722,-500.0,0.00031232,4]
[328456103,1717413038731,-34819.75434707,0.00031397,2]
[328456104,1717413038742,-33260.29163209,0.00031397,2]
[328456105,1717413038751,-922.9623,0.00031397,2]
[328456106,1717413038761,-153.59420895,0.00031397,3]
[328456107,1717413038771,-175.52586236,0.00031397,3]
[328456108,1717413038781,-151.0,0.00031397,7]
[328456109,1717413038790,-1673.51387656,0.00031397,3]
[328456110,1717413038800,-151.0,0.00031397,7]
[328456111,1717413038809,-186.748072,0.00031397,7]
[328456112,1717413038819,-208.00991364,0.00031397,2]